Cogmind - Beta 17 @@@ ROGUE MODE // 2026.08.14 @ 20:40:01 Player: Gargash Result: Destroyed by H-66 Slayer with Gauss Rifle Performance ------------- Evolutions (5) 2500 Regions Visited (8) 1600 Robots Destroyed (49) 245 Value Destroyed (1619) 1619 Prototype IDs (0) 0 Alien Tech Used (0) 0 Bonus (0) 0 TOTAL SCORE: 5964 Bonus ------- None Cogmind --------- Core Integrity 0/1000 Matter 254/300 Energy 70/100 System Corruption 7% Temperature Cool (0) Movement Core (50) Location -5/Factory Parts ------- > --- POWER (2) -------- (None) > --- PROPULSION (4) --- (None) > --- UTILITY (7) ------ (None) > --- WEAPON (4) ------- (None) > --- INVENTORY (5) ---- Neutrino Core Improved EM Pulse Cannon Heavy Ion Cannon Heavy Plasma Cannon Peak State ------------ > --- POWER ------------ Improved Ion Engine Micro Nuclear Core > --- PROPULSION ------- Compact Wheel Compact Wheel Compact Wheel Subdweller Monowheel > --- UTILITY ---------- Advanced Heat Sink Huge Storage Unit Advanced Sensor Array Improved Heavy Armor Plating > --- WEAPON ----------- Plasma Rifle Thermic Laser Thermic Laser Heavy Machine Gun > --- INVENTORY -------- Light Deuterium Engine Improved Deuterium Engine Medium Treads Compact Wheel Nuclear Pulse Thruster Improved Thermal Generator Heat Sink Improved Heat Sink Advanced Sensor Array IFF Parser Improved Particle Charger Improved Heavy Armor Plating Focal Shield Drone Bay High-powered Shock Rifle High-powered Shock Rifle Gatling Laser Improved EM Pulse Cannon Flak Gun Heavy Missile Launcher Power Maul Makeshift Axe Greatsword [Rating: 62] Favorites ----------- Power Improved Ion Engine Engine Improved Ion Engine Power Core Micro Nuclear Core Propulsion Subdweller Monowheel Treads Medium Treads Leg Aluminum Leg Wheel Subdweller Monowheel Hover Unit Antigrav System Flight Unit Nuclear Pulse Thruster Utility Small Storage Unit Device Advanced Sensor Array Storage Small Storage Unit Processor Targeting Computer Hackware Makeshift Hacking Suite Protection Improved Heavy Armor Plating Weapon Makeshift Laser Energy Gun Makeshift Laser Energy Cannon Improved EM Pulse Cannon Ballistic Gun Heavy Machine Gun Ballistic Cannon Battle Cannon Launcher Heavy Missile Launcher Special Weapon Flamer Impact Weapon Power Maul Slashing Weapon Greatsword Special Melee Weapon Datajack Build | -11 -10 -10 -9 -9 -6 -6 -6 -5 ------- Run | Yrd Mat Sub Rec Scr Fac Ext Cet Fac Slots Evolved 10 | . . . . . 8 . . 2 Power 1 | . . . . . 1 . . . Propulsion 2 | . . . . . 2 . . . Utility 5 | . . . . . 3 . . 2 Weapon 2 | . . . . . 2 . . . Parts Attached 88 | 6 11 13 2 . 27 13 5 11 Power 13 | 1 3 . 1 . 2 4 1 1 Engine 11 | 1 3 . 1 . 1 4 1 . Core 2 | . . . . . 1 . . 1 Reactor . | . . . . . . . . . Propulsion 19 | 2 3 3 . . 6 1 1 3 Treads 1 | . . . . . 1 . . . Leg 4 | . 3 . . . 1 . . . Wheel 10 | 2 . 3 . . 4 1 . . Hover 1 | . . . . . . . . 1 Flight 3 | . . . . . . . 1 2 Utility 24 | 1 1 2 1 . 10 3 3 3 Device 14 | . 1 1 1 . 5 1 3 2 Storage 2 | 1 . . . . 1 . . . Processor 3 | . . . . . 2 . . 1 Hackware 1 | . . 1 . . . . . . Protection 4 | . . . . . 2 2 . . Artifact . | . . . . . . . . . Weapon 32 | 2 4 8 . . 9 5 . 4 Energy Gun 13 | 1 2 3 . . 3 3 . 1 Energy Cannon 3 | . 1 . . . 1 . . 1 Ballistic Gun 4 | 1 . 1 . . 1 1 . . Ballistic Cannon 5 | . . 2 . . 1 . . 2 Launcher 1 | . . . . . 1 . . . Special Weapon 1 | . . 1 . . . . . . Impact Weapon 2 | . . 1 . . 1 . . . Slashing Weapon 2 | . . . . . 1 1 . . Piercing Weapon . | . . . . . . . . . Special Melee Weapon 1 | . 1 . . . . . . . Unidentified Prototypes . | . . . . . . . . . Parts Lost 40 | . 4 1 . . 2 17 4 12 Power 4 | . 1 . . . . 1 1 1 Propulsion 12 | . 2 . . . 1 5 1 3 Utility 10 | . . . . . . 6 . 4 Weapon 14 | . 1 1 . . 1 5 2 4 Highest Loss Streak 12 | . 4 1 . . 2 9 4 12 To Critical Strikes 2 | . . . . . . . 2 . Average Backups 10 | 4 6 7 8 8 14 19 12 4 Power 1 | . 1 1 1 1 1 1 2 . Propulsion . | 2 1 . 1 1 1 2 . . Utility 3 | . . . 1 2 5 8 5 . Weapon 5 | 1 2 4 4 4 6 7 4 3 Tool/Special . | . . . . . . . . . Unused Backups 16 | . 4 3 . . 3 . 5 1 Power 3 | . 2 . . . . . 1 . Propulsion 1 | . . . . . 1 . . . Utility 5 | . . 1 . . 1 . 3 . Weapon 7 | . 2 2 . . 1 . 1 1 Tool/Special . | . . . . . . . . . Average Slot Usage (%) 89 | . 85 99 100 100 96 84 72 36 Engine 10 | . 14 14 14 14 6 9 11 4 Core 1 | . . . . . 5 2 . . Treads 1 | . . . . . 4 2 4 . Leg 4 | . 11 17 . . 1 . . . Wheel 17 | . 15 10 28 28 18 18 4 . Device 11 | . 1 10 8 14 14 11 15 7 Storage 9 | . 14 14 14 14 6 6 4 . Processor 2 | . . . . . 8 . . 4 Protection 1 | . . . . . 1 5 4 . Energy Gun 16 | . 13 21 28 28 10 16 8 . Energy Cannon 1 | . 6 . . . 3 . 4 . Ballistic Gun 2 | . 7 1 . . 2 5 4 . Ballistic Cannon 1 | . . 1 . . 4 . . . Peak Build Rating 62 | 6 11 19 19 16 62 62 58 56 Average Rating 30 | 3 7 12 17 16 48 55 46 36 On Entrance 20 | . 6 11 19 16 16 62 42 13 Avg Prop Armor Cover (%) 6 | . . 10 . 5 8 4 7 7 Naked Turns 7 | . . . . . . . . 7 Heaviest Build 143 | 14 19 19 18 18 127 143 134 17 Greatest Support 68 | 26 26 40 40 20 68 68 16 19 Greatest Overweight (x) 8 | 3 1 . . . 5 7 8 1 Average Overweight (x) . | . . . . . 1 2 2 . Largest Inventory Capacity 25 | 8 8 8 8 8 25 25 25 5 Average Capacity 14 | 7 8 8 8 8 23 25 20 5 Most Carried 25 | 8 8 8 8 8 25 25 18 5 Average Carried 11 | 4 6 7 7 8 15 21 13 4 Final Capacity 25 | 8 8 8 8 8 25 25 5 5 Final Carried 25 | 4 8 8 8 8 25 19 5 4 Class Distribution -------------------- 59% | Mutant 16% | Scavenger-Tank 9% | Scavenger-Skirmisher 5% | Derelict-Gunner Dominant Class ---------------- Mutant | -10/Materials Mutant | -10/Subcaves Mutant | -9/Recycling Mutant | -9/Scraptown Scavenger-Skirmisher | -6/Factory Scavenger-Tank | -6/Extension Scavenger-Gunner | -6/Cetus Mutant | -5/Factory Resources | -11 -10 -10 -9 -9 -6 -6 -6 -5 ----------- Run | Yrd Mat Sub Rec Scr Fac Ext Cet Fac Matter Collected 1569 | 237 144 170 10 10 367 467 . 164 Remotely . | . . . . . . . . . Salvage Created 2050 | . 204 242 157 . 550 770 . 127 Parts 90 | . 15 9 5 . 22 31 . 8 Haulers Intercepted . | . . . . . . . . . Recyclers Shooed 4 | . . . 1 . . 3 . . Parts Field Recycled . | . . . . . . . . . Retrieved Matter . | . . . . . . . . . Parts Self-Destructed 9 | . . 9 . . . . . . Prevented . | . . . . . . . . . Parts Restored . | . . . . . . . . . Kills | -11 -10 -10 -9 -9 -6 -6 -6 -5 ------- Run | Yrd Mat Sub Rec Scr Fac Ext Cet Fac Combat Hostiles Destroyed 33 | . 9 5 1 . 6 10 . 2 Guns 20 | . 8 5 1 . 2 4 . . Cannons 2 | . 1 . . . 1 . . . AOE 11 | . . . . . 3 6 . 2 Classes Destroyed 14 | . 3 2 2 . 2 4 . 1 Worker 3 | . . . . . . 3 . . Builder 1 | . . . . . . 1 . . Recycler 7 | . . . 1 . 2 3 . 1 Turret 2 | . . 2 . . . . . . Watcher 3 | . 1 . . . 2 . . . Swarmer 9 | . 6 3 . . . . . . Cutter 2 | . . . . . . . . 2 Grunt 9 | . 3 . . . 1 5 . . Sentry 4 | . . . 1 . 1 2 . . Specialist 2 | . . . . . 2 . . . Hunter 1 | . . . . . . 1 . . Programmer 2 | . . . . . 2 . . . Behemoth 2 | . . . . . . 2 . . Subdweller 2 | . . 2 . . . . . . Best Kill Streak 6 | . 6 3 1 . 2 5 . 3 Combat Bots Only 6 | . 6 3 1 . 2 4 . 2 Max Kills in Single Turn 3 | . 1 1 1 . 2 2 . 3 Gunslinging . | . . . . . . . . . Exploded 2 | . . . . . 2 2 . 2 Melee . | . . . . . . . . . Uniques/NPCs Destroyed . | . . . . . . . . . Combat | -11 -10 -10 -9 -9 -6 -6 -6 -5 -------- Run | Yrd Mat Sub Rec Scr Fac Ext Cet Fac Hostile Shots Fired 757 | . 93 59 2 . 27 448 26 102 Missed 242 | . 12 16 . . 7 161 7 39 Hits 515 | . 81 43 2 . 20 287 19 63 Melee 5 | . . . . . . . . 5 Projectile 510 | . 81 43 2 . 20 287 19 58 AOE 5 | . . . . . . . . 5 Critical Strikes 21 | . 3 . . . 1 6 3 8 Part Disruptions 1 | . . . . . 1 . . . Damage Taken 6957 | . 700 381 30 . 603 2930 506 1807 Core 1985 | . 154 72 . . 183 448 127 1001 Absorbed by Shields . | . . . . . . . . . Ignored by Resistances 89 | . . . . . 14 75 . . Regen/Repaired (Parts) 67 | . . . . . 67 . . . Core Remaining (%) 39 | 100 . . . 9 . . 10 . Volleys Fired 98 | . 20 16 4 . 21 26 1 10 Largest 4 | . 2 2 2 . 4 4 4 1 Hottest 275 | . 130 150 100 . 262 275 262 90 Shots Fired 218 | . 37 28 8 . 66 65 4 10 Gun 162 | . 29 24 8 . 40 54 3 4 Cannon 41 | . 8 3 . . 23 . 1 6 Launcher 14 | . . . . . 3 11 . . Special 1 | . . 1 . . . . . . Kinetic 55 | . 7 8 . . 20 15 1 4 Thermal 119 | . 30 18 4 . 32 27 2 6 Explosive 14 | . . . . . 3 11 . . Electromagnetic 30 | . . 2 4 . 11 12 1 . Robot Hit Streak 13 | . 5 13 9 . 9 10 5 2 Robot Miss Streak 8 | . 8 7 1 . 6 6 1 4 Penetration Max . | . . . . . . . . . Secondary Targets 5 | . 2 2 . . . 1 . . Max Gunslinging Chain 1 | . 1 1 . . . 1 . . Shots Hit Robots 148 | . 28 26 6 . 39 43 3 3 Core Hits 135 | . 27 22 4 . 19 54 4 5 Critical Kills . | . . . . . . . . . Critical Parts Destroyed 1 | . . 1 . . . . . . Critical Strikes 14 | . . 2 . . 3 9 . . Burn 11 | . . . . . 3 8 . . Smash 2 | . . 2 . . . . . . Sever 1 | . . . . . . 1 . . Melee Attacks 45 | . 1 16 . . 5 4 . 19 Impact 21 | . . 16 . . 5 . . . Slashing 23 | . . . . . . 4 . 19 Piercing . | . . . . . . . . . Sneak Attacks 1 | . 1 . . . . . . . Combat Hostiles . | . . . . . . . . . Follow-up Attacks . | . . . . . . . . . Damage Inflicted 5609 | . 327 862 98 . 1148 2584 80 510 Guns 1943 | . 276 217 98 . 508 781 52 11 Cannons 556 | . 51 63 . . 317 . 28 97 Explosions 2332 | . . . . . 323 1607 . 402 Melee 778 | . . 582 . . . 196 . . Ramming . | . . . . . . . . . Kinetic 657 | . 53 63 . . 289 180 27 45 Thermal 1514 | . 274 193 34 . 439 459 25 90 Explosive 2233 | . . . . . 251 1607 . 375 Electromagnetic 427 | . . 24 64 . 169 142 28 . Impact 582 | . . 582 . . . . . . Slashing 196 | . . . . . . 196 . . Piercing . | . . . . . . . . . Highest Corruption 7 | . . . . . . . . 7 Average Corruption 4 | . . . . . . . . 4 Corruption Purged . | . . . . . . . . . Corruption Blocked . | . . . . . . . . . Effects 3 | . . . . . . . . 3 Message Errors 1 | . . . . . . . . 1 Energy Discharges 1 | . . . . . . . . 1 Data Loss (minor) 1 | . . . . . . . . 1 Overload Shots 5 | . . . . . 5 . . . Effects 2 | . . . . . 2 . . . Heat Surge 2 | . . . . . 2 . . . Overflow Damage 316 | . 1 269 . . . 40 . 6 Projectiles 1 | . 1 . . . . . . . Explosions 46 | . . . . . . 40 . 6 Melee 269 | . . 269 . . . . . . Knockbacks 10 | . . 8 . . 1 . . 1 Impact 6 | . . 6 . . . . . . Kinetic 2 | . . . . . 1 . . 1 Secondary 2 | . . 2 . . . . . . Self-Inflicted Damage 479 | . . . . . 101 76 . 302 Shots 11 | . . . . . 4 3 . 4 Rammed . | . . . . . . . . . Targets Rammed . | . . . . . . . . . Kicked . | . . . . . . . . . Crushed . | . . . . . . . . . Highest Temperature 813 | . 408 42 93 . 510 813 138 47 Average Temperature 185 | . 218 18 48 . 160 265 74 16 Received Heat Transfer 999 | . 36 174 9 . 108 528 54 90 Effects 22 | . 2 . . . 5 15 . . Shutdowns 8 | . 1 . . . 3 4 . . Interference 5 | . . . . . . 5 . . Matter Decay 2 | . . . . . . 2 . . Short Circuit 3 | . 1 . . . . 2 . . Damage (minor) 2 | . . . . . 1 1 . . Damage (core) 2 | . . . . . 1 1 . . Siege Activations . | . . . . . . . . . Martial Activations . | . . . . . . . . . Shielding Activations . | . . . . . . . . . Robots Disrupted . | . . . . . . . . . Combat Hostiles . | . . . . . . . . . Robots Corrupted 3 | . . 3 . . . . . . Combat Hostiles 3 | . . 3 . . . . . . Parts Fried 4 | . . 2 . . 1 1 . . Impact Corruptions 6 | . . 6 . . . . . . Robots Melted 1 | . . . . . . 1 . . Combat Hostiles . | . . . . . . . . . Parts Melted 6 | . 1 1 . . 3 1 . . Heat Transferred 4083 | . 396 291 74 . 1222 1900 50 150 Parts Sabotaged . | . . . . . . . . . Parts Stolen . | . . . . . . . . . Parts Stripped . | . . . . . . . . . Power Chain Reactions . | . . . . . . . . . Alert | -11 -10 -10 -9 -9 -6 -6 -6 -5 ------- Run | Yrd Mat Sub Rec Scr Fac Ext Cet Fac Maximum Alert Level 1 | . . . . . . . . 1 Low Security (%) 98 | 100 100 . 100 . 100 100 100 86 Level 1 1 | . . . . . . . . 13 Level 2 . | . . . . . . . . . Level 3 . | . . . . . . . . . Level 4 . | . . . . . . . . . Level 5 . | . . . . . . . . . High Security . | . . . . . . . . . Max Security . | . . . . . . . . . Peak Influence 284 | . 130 . 62 . 89 147 37 284 Initial 51 | . . . 51 . . . 37 . Average 30 | . 42 . 27 . 15 51 11 38 Influence Increases 1559 | . 248 230 26 . 288 354 . 413 Destroy 0b10 Robot/C 660 | . 180 100 20 . 120 200 . 40 Destroy 0b10 Robot/NC 70 | . 5 . 5 . 20 35 . 5 Destroy Leader 126 | . 32 10 . . 44 30 . 10 Successful Hack 47 | . . . . . 26 7 . 14 Disable Machine 165 | . . . . . 45 . . 120 Destroy Structure 266 | . 1 . 1 . 33 67 . 164 Partial Spotted 45 | . . . . . . . . 45 Lose Combat Pursuer 180 | . 30 120 . . . 15 . 15 Influence Decreases 1331 | . 138 232 134 . 288 286 68 185 Entered New Map 142 | . . 54 57 . . . 31 . Time Decay 917 | . 98 168 77 . 288 173 17 96 Lost Part 252 | . 40 10 . . . 113 . 89 Lost Ally 20 | . . . . . . . 20 . Squads Dispatched 14 | . 1 . . . 4 3 . 6 Investigation 1 | . . . . . . 1 . . Extermination 3 | . . . . . 2 . . 1 Reinforcement 7 | . 1 . . . 2 2 . 2 Assault 2 | . . . . . . . . 2 Garrison 1 | . . . . . . . . 1 Intercept . | . . . . . . . . . Searches Triggered . | . . . . . . . . . Construction Impeded 2 | . . . . . . 2 . . Haulers Reinforced . | . . . . . . . . . Active Scanning Responses . | . . . . . . . . . Cargo Convoy Interrupts . | . . . . . . . . . Stealth | -11 -10 -10 -9 -9 -6 -6 -6 -5 --------- Run | Yrd Mat Sub Rec Scr Fac Ext Cet Fac Distress Signals 7 | . 1 . . . . 2 2 2 Communications Jammed . | . . . . . . . . . Distress Signals . | . . . . . . . . . Times Spotted 77 | . 13 14 1 . 12 15 5 17 Peak Tracking Total 12 | . 6 6 1 . 2 6 5 12 Tactical Retreats 7 | . 1 4 . . . 1 . 1 Traps | -11 -10 -10 -9 -9 -6 -6 -6 -5 ------- Run | Yrd Mat Sub Rec Scr Fac Ext Cet Fac Traps Triggered 1 | . . . . . 1 . . . Indirectly . | . . . . . . . . . Trap Hack Attempts . | . . . . . . . . . Triggered . | . . . . . . . . . Disarmed . | . . . . . . . . . Reprogrammed . | . . . . . . . . . Reused . | . . . . . . . . . Traps Extracted . | . . . . . . . . . Installed . | . . . . . . . . . Triggered . | . . . . . . . . . Machines | -11 -10 -10 -9 -9 -6 -6 -6 -5 ---------- Run | Yrd Mat Sub Rec Scr Fac Ext Cet Fac Machines Disabled 12 | . . 1 . . 3 . . 8 Max in Single Turn 4 | . . 1 . . 2 . . 4 Garrison Access 1 | . . . . . . . . 1 Machines Repaired . | . . . . . . . . . Machines Dismantled . | . . . . . . . . . Machines Sabotaged . | . . . . . . . . . Overloaded Fab Kills . | . . . . . . . . . Hacking | -11 -10 -10 -9 -9 -6 -6 -6 -5 --------- Run | Yrd Mat Sub Rec Scr Fac Ext Cet Fac Machines Accessed 12 | . . . 3 3 3 2 . 1 Terminals 5 | . . . 1 . 1 2 . 1 Fabricators . | . . . . . . . . . Repair Stations 1 | . . . . . 1 . . . Recycling Units 1 | . . . . . 1 . . . Scanalyzers . | . . . . . . . . . Garrison Access . | . . . . . . . . . Total Hacks 67 | . . . 27 27 7 4 . 2 Successful 62 | . . . 26 27 7 1 . 1 Failed 5 | . . . 1 . . 3 . 1 Catastrophic . | . . . . . . . . . Database Lockouts . | . . . . . . . . . Manual . | . . . . . . . . . Terminals 10 | . . . 3 . 1 4 . 2 Fabricators . | . . . . . . . . . Repair Stations 2 | . . . . . 2 . . . Recycling Units 4 | . . . . . 4 . . . Scanalyzers . | . . . . . . . . . Garrison Access . | . . . . . . . . . Terminal Hacks 56 | . . . 26 27 1 1 . 1 Record 51 | . . . 24 27 . . . . Open Door 1 | . . . . . 1 . . . Branch Access Points 1 | . . . . . . 1 . . Emergency Access Points 1 | . . . . . . . . 1 Hauler Manifests 1 | . . . 1 . . . . . Zone Layout 1 | . . . 1 . . . . . Fabricator Hacks . | . . . . . . . . . Repair Station Hacks 2 | . . . . . 2 . . . Scan Component 1 | . . . . . 1 . . . Repair 1 | . . . . . 1 . . . Recycling Unit Hacks 4 | . . . . . 4 . . . Recycle Component 1 | . . . . . 1 . . . Process 1 | . . . . . 1 . . . Report Inventory 1 | . . . . . 1 . . . Retrieve Components 1 | . . . . . 1 . . . Scanalyzer . | . . . . . . . . . Garrison Access Hacks . | . . . . . . . . . Unauthorized Hacks . | . . . . . . . . . Terminals . | . . . . . . . . . Fabricators . | . . . . . . . . . Repair Stations . | . . . . . . . . . Recycling Units . | . . . . . . . . . Scanalyzers . | . . . . . . . . . Garrison Access . | . . . . . . . . . Data Cores Recovered . | . . . . . . . . . Used . | . . . . . . . . . Hacking Detections 5 | . . . 1 . 2 2 . . Full Trace Events 1 | . . . . . . 1 . . Feedback Events . | . . . . . . . . . Feedback Blocked . | . . . . . . . . . Robot Schematics Acquired . | . . . . . . . . . Robots Built . | . . . . . . . . . Authchips . | . . . . . . . . . Time . | . . . . . . . . . Total Robot Build Rating . | . . . . . . . . . Part Schematics Acquired . | . . . . . . . . . Parts Built . | . . . . . . . . . Authchips . | . . . . . . . . . Time . | . . . . . . . . . Total Part Build Rating . | . . . . . . . . . Part Studies Acquired . | . . . . . . . . . Parts Repaired 1 | . . . . . 1 . . . Time 22 | . . . . . 22 . . . Parts Recycled 1 | . . . . . 1 . . . Recycled Matter 3 | . . . . . 3 . . . Retrieved Matter . | . . . . . . . . . Retrieved Components . | . . . . . . . . . Parts Scanalyzed . | . . . . . . . . . Part Schematics Acquired . | . . . . . . . . . Parts Damaged . | . . . . . . . . . Bothacking | -11 -10 -10 -9 -9 -6 -6 -6 -5 ------------ Run | Yrd Mat Sub Rec Scr Fac Ext Cet Fac Used RIF Installer . | . . . . . . . . . Robots Hacked 1 | . 1 . . . . . . . Non-combat 1 | . 1 . . . . . . . Combat . | . . . . . . . . . Robot Hacks Applied 1 | . 1 . . . . . . . parse_system 1 | . 1 . . . . . . . Relay Couplers Released 4 | . . . . . . . . 4 Machine Destruction 4 | . . . . . . . . 4 Fabnet Peak Effective % . | . . . . . . . . . Robots Rewired . | . . . . . . . . . Allies Hacked . | . . . . . . . . . Hacks Repelled . | . . . . . . . . . Allies | -11 -10 -10 -9 -9 -6 -6 -6 -5 -------- Run | Yrd Mat Sub Rec Scr Fac Ext Cet Fac Total Allies . | . . . . . . . . . Largest Group . | . . . . . . . . . Highest-Rated Group . | . . . . . . . . . Highest-Rated Ally . | . . . . . . . . . Total Orders 2 | . . . . . . . 2 . EXPLORE 2 | . . . . . . . 2 . Ally Attacks . | . . . . . . . . . Total Damage . | . . . . . . . . . Kills . | . . . . . . . . . Allies Corrupted . | . . . . . . . . . Allies Melted . | . . . . . . . . . Intel | -11 -10 -10 -9 -9 -6 -6 -6 -5 ------- Run | Yrd Mat Sub Rec Scr Fac Ext Cet Fac Active Infowar (turns) 3655 | . . 438 128 913 1183 568 82 343 Optics 594 | . . . . . 594 . . . Sensors 3206 | . . . 128 913 1172 568 82 343 IFF 11 | . . . . . 11 . . . Seismic 438 | . . 438 . . . . . . Robot Analysis Total . | . . . . . . . . . Derelict Logs Recovered 3 | . . . . 3 . . . . Drone Launches 2 | . . . . . . . 2 . Drone Recoveries . | . . . . . . . . . Exploration | -11 -10 -10 -9 -9 -6 -6 -6 -5 ------------- Run | Yrd Mat Sub Rec Scr Fac Ext Cet Fac Turns Passed 4818 | 59 299 951 205 913 1183 720 82 406 Spaces Moved 3563 | 39 182 653 145 831 707 402 53 551 Core 69 | 18 . . . . . . . 51 Treads . | . . . . . . . . . Legs 406 | . 72 334 . . . . . . Wheels 2551 | 21 110 319 145 831 707 402 16 . Hover . | . . . . . . . . . Flight 537 | . . . . . . . 37 500 Fastest Speed 37 | 50 90 110 110 110 110 115 40 37 Average Speed 105 | 110 103 115 110 110 126 135 94 39 Slowest Speed 220 | 200 190 120 110 110 160 205 220 120 Overloaded Moves . | . . . . . . . . . Propulsion Burnouts . | . . . . . . . . . Robots Hopped . | . . . . . . . . . Potential Cave-ins . | . . . . . . . . . Cave-ins Triggered . | . . . . . . . . . Exploration Rate (%) 27 | 3 18 46 21 57 15 48 23 13 Regions Visited 8 Branch Regions 5 Pre-discovered Areas . | . . . . . . . . . Known Exits Taken 1 | . . . . . . 1 . . Unknown Exits Taken 7 | 1 1 1 1 1 1 . 1 . Scrap Searched 12 | . . 11 . 1 . . . . Spaces Dug 25 | . . 1 . . 5 . . 19 Terrain Destroyed 273 | . . 1 . . 34 124 . 114 Melee 25 | . . 1 . . 5 . . 19 Projectile 7 | . . . . . 5 . . 2 AOE 241 | . . . . . 24 124 . 93 Terrain Rammed . | . . . . . . . . . Walls Destroyed . | . . . . . . . . . Machines Disabled . | . . . . . . . . . Actions | -11 -10 -10 -9 -9 -6 -6 -6 -5 --------- Run | Yrd Mat Sub Rec Scr Fac Ext Cet Fac Total 4358 | 54 259 798 183 830 942 520 84 688 Wait 385 | . 19 67 29 . 123 54 14 79 Move 3555 | 38 181 652 144 830 706 401 52 551 Hop . | . . . . . . . . . Pick Up 98 | 10 17 14 1 . 39 11 . 6 Fast Attach 15 | . . 4 1 . . . 1 9 Attach 57 | 6 6 2 . . 16 16 5 6 Detach 9 | . . . . . 3 1 2 3 Swap 40 | . 6 9 1 . 15 6 2 1 Drop 56 | . 9 18 3 . 14 1 7 4 Fire 98 | . 20 16 4 . 21 26 1 10 Melee 45 | . 1 16 . . 5 4 . 19 Ram . | . . . . . . . . . Kick . | . . . . . . . . . Crush . | . . . . . . . . . Escape Stasis . | . . . . . . . . . Rewire . | . . . . . . . . . Trap . | . . . . . . . . . Miscellaneous . | . . . . . . . . . Route ------- -11/Scrapyard -10/Materials -10/Subcaves (discovered 2 exits: *Rec / *Scr) -9/Recycling -9/Scraptown -6/Factory -6/Extension (discovered 2 exits: *Fac / *Cet) -6/Cetus -5/Factory (discovered 1 exit: [*Fac]) History --------- Turn | Location | Event 19 | -11/Scrapyard | Discovered new exit (range 16) 60 | -11/Scrapyard | Entered Materials 238 | -10/Materials | Core integrity fell below 50% 259 | -10/Materials | Lost 4 parts (1p2n1w) 272 | -10/Materials | Discovered new exit (range 12) 314 | -10/Materials | Build established: Mutant 359 | -10/Materials | Entered Subcaves 360 | -10/Subcaves | Approached by a straggling Scientist 467 | -10/Subcaves | A swath of the cavern ceiling suddenly collapsed 1262 | -10/Subcaves | Discovered new exit (range 15) 1276 | -10/Subcaves | Core integrity fell below 20% 1310 | -10/Subcaves | Entered Recycling 1311 | -9/Recycling | Met a Zionite searching for Scraptown 1475 | -9/Recycling | Scanned before Scraplab entrance 1492 | -9/Recycling | Entered Scraplab 1506 | -9/Recycling | Discovered new exit (range 3) 1515 | -9/Recycling | Entered Scraptown 1591 | -9/Scraptown | Visited The Evicted 1624 | -9/Scraptown | Visited Comm Corps 1943 | -9/Scraptown | Visited SPCMW 1996 | -9/Scraptown | Visited Spacefarers 2030 | -9/Scraptown | Visited UFD Registry 2146 | -9/Scraptown | Visited Cyclists 2200 | -9/Scraptown | Visited Cave Peace 2257 | -9/Scraptown | Scanned Subdweller tech in exchange for log data 2259 | -9/Scraptown | Learned Factory emergency access door positions 2260 | -9/Scraptown | Learned 12 Factory zone layouts 2261 | -9/Scraptown | Learned Research stockpile data 2277 | -9/Scraptown | Discovered new exit (range 5) 2428 | -9/Scraptown | Entered Factory 2428 | -6/Factory | Evolved 8 slots: Power x1, Propulsion x2, Utility x3, Weapon x2 3006 | -6/Factory | Repaired Hvy. Missile Launcher 3240 | -6/Factory | Build established: Scavenger-Skirmisher 3602 | -6/Factory | Discovered new exit (range 10) 3611 | -6/Factory | Entered Extension 3702 | -6/Extension | Identified exit to Cetus 3716 | -6/Extension | Build established: Scavenger-Tank 3852 | -6/Extension | Spotted B-75 Beast 3882 | -6/Extension | Spotted B-75 Beast 3911 | -6/Extension | Core integrity fell below 50% 3947 | -6/Extension | Lost 9 parts (1p2n4u2w) 3965 | -6/Extension | Destroyed B-75 Beast 3968 | -6/Extension | Destroyed B-75 Beast 4235 | -6/Extension | Lost 5 parts (2n2u1w) 4301 | -6/Extension | Discovered new exit (range 16) 4331 | -6/Extension | Entered Cetus 4380 | -6/Cetus | Spotted Cetus Guard 4380 | -6/Cetus | Spotted Cetus Guard 4383 | -6/Cetus | Spotted Cetus Guard 4383 | -6/Cetus | Spotted Cetus Guard 4396 | -6/Cetus | Core integrity fell below 20% 4407 | -6/Cetus | Discovered new exit (range 16) 4413 | -6/Cetus | Entered Factory 4413 | -5/Factory | Evolved 2 slots: Utility x2 4425 | -5/Factory | Lost 4 parts (1p1n2w) 4703 | -5/Factory | Build established: Mutant 4743 | -5/Factory | Discovered new exit (range 12) 4786 | -5/Factory | Garrison activated, responded to threat 4801 | -5/Factory | Core integrity fell below 50% 4813 | -5/Factory | Core integrity fell below 20% 4819 | -5/Factory | Destroyed by H-66 Slayer with Gauss Rifle Last Messages --------------- Penetrated by Slug. U-05 Engineer lays Concrete. Critical hit (Burn: +37). Penetrated by Slug. Slug penetrates Wall. K-01 Serf collects debris. U-05 Engineer lays Concrete. Core Analyzer destroyed. Penetrated by Slug. U-05 Engineer lays Concrete. System corrupted: Energy discharge (-21). U-05 Engineer lays Concrete. Penetrated by Slug. U-05 Engineer lays Concrete. Penetrated by Slug. U-05 Engineer lays Concrete. Penetrated by Slug. ALERT: Cargo convoy en route, clear transfer corridor. U-05 Engineer lays Concrete. Map ----- +----------------------------------------------------+ | ??????????????????????????????????????????? ???? | | ??????????????????????????????????????????? #? | | ??????????????????????????????????????????? #? | | ?????????????????????????????????########## #? | | ?????????????????????????????????# """" # #? | | ?????????????????????????????????# ""S"" # #? | | ?????????????????????????????????# "" "" # #? | | ?????????????????????????????????# # #? | | ?????????????????????????????????# # #? | | ?????????????????????????????????# """"" # #? | | ?????????????????????????????????# """"" # #? | | ?????????????????????????#######?# """ # +? | | ??????????????############""G""### " #? | | ??????????????# ##"" " !;;###"" " ## | | ??????????????#! # !!!Y s = % "# | | ??????????????# # p p "# | | ??????????????# """ """ " ! "# | | ????????????????""" """ # !! "# | | ?????????????????"" """ # "# | | ????????????????? # ## | | ????????????????? #* #? | | ????????????????######### %! [ "#? | | ????????????????????????# "#? | | ????????????????????????# u ##? | | ????????????????????????# h #?? | | ????????????????????????#@ ### | | ????????????????????????# % | | ????????????????????????+ u! | | ????????????????????????# ###### | | ????????????????????????# #???#######""""##### | | ????????????????????????# ##??#" #?? | | ????????????????????????# #???# #? | | ????????????????????????# #??# # | | ????????????????????????# #?# # | | ????????????????????????? #?# # | | ????????????????????????? #?# # | | ????????????????????????? #?# # | | ????????????????????????? #?## # | | ????????????????????????? #?# "" # | | ????????????????????????? #??# " """ # | | ????????????????????????? ???? #" S" # | | ??????????????????????????????????# # | | ????????????????????????????????????########??#### | | ?????????????????????????????????????????????????? | | ?????????????????????????????????????????????????? | | ?????????????????????????????????????????????????? | | ?????????????????????????????????????????????????? | | ?????????????????????????????????????????????????? | | ?????????????????????????????????????????????????? | | ?????????????????????????????????????????????????? | +----------------------------------------------------+ Best States ------------- Heat Dissipation 66 Energy Generation 27 Energy Capacity 480 Matter Stores 300 Matter Capacity 300 Sight Range 22 Robot Scan Range 16 Terrain Scan Density 10 Power Amplification 20 Armor Coverage 600 Resistance: KI 20 Evasion (%) 62 Targeting Accuracy 5 Core Analysis 6 Matter Filtering 30 Particle Charging 20 Offensive Hacking 11 Item Schematics ----------------- None Robot Schematics ------------------ None Fabricated ------------ Nothing Repaired ---------- Hvy. Missile Launcher | 21% | -6/Factory Studied --------- None Alien Tech Used ----------------- None Achievements -------------- Civilization 2243 You May Approach The Wall Challenges ------------ None Game ------ Seed LinkedChromionMesh Manual? 0 Play Time 01:50:07 Cumulative 52.7 hours Start 2026.08.10 @ 21:44:48 End 2026.08.14 @ 20:40:01 Sessions 7 Manual Loads 0 Difficulty Rogue Special Mode None Game No. 29 Rogue 29 Adventurer 0 Explorer 0 Win Type - Total 0 Types 0/0/0/0/0/0/0/0/0/0 Lore% 21 Gallery% 32 Achievement% 19 Wizard Run 0 Options --------- Layout 1 ASCII 0 Keyboard 0 Movement Mouse Keybinds 0 Fullscreen 1 Font 24/Smallcaps Map View 50x35 Zoom Use 0% Tactical HUD 0 Map Filters NONE Filters NONE Steam 1 RUN: eac0b879-d4a5-4bc1-9d24-ce62129fb97e